fUSD/lending_fUSD_20251119
["ID","MTS","AMOUNT","RATE_DAILY","PERIOD"]
[394425643,1763562626821,10000.0,0.0004216,30]
[394425644,1763562629896,4666.83730255,0.0002,2]
[394425657,1763562631939,-1460.45530618,0.00022,4]
[394425659,1763562631953,-3424.78506904,0.00022,4]
[394425660,1763562631963,-717.99160486,0.00022,4]
[394425662,1763562631974,-2011.13048912,0.00022,4]
[394425664,1763562631983,-480.0,0.00026399,2]
[394425665,1763562631993,-300.0,0.00026399,2]
[394425666,1763562632003,-300.0,0.00026399,2]
[394425667,1763562632012,-11840.7008747,0.000264,2]
[394425668,1763562632021,-502.06989655,0.000264,2]
[394425669,1763562632032,-500.0,0.000264,2]
[394425670,1763562632041,-500.0,0.000264,2]
[394425671,1763562632050,-164.43513185,0.000264,2]
[394425672,1763562632059,-500.0,0.000264,2]
[394425673,1763562632068,-311.36460741,0.000264,2]
[394425674,1763562632078,-500.0,0.000264,2]
[394425675,1763562632087,-729.75169029,0.000267,2]
[394425676,1763562632096,-500.0,0.00026948,2]
[394425677,1763562632105,-1000.0,0.00026948,2]
[394425678,1763562632115,-1001.61257175,0.00026948,2]
[394425679,1763562632124,-547.24248983,0.00027496,5]
[394425680,1763562632133,-171.67648789,0.00027838,8]
[394425681,1763562632142,-252.6060491,0.00029276,11]
[394425682,1763562632152,-348.44240069,0.00030714,14]
[394425683,1763562632160,-457.14737243,0.00032152,17]
[394425684,1763562632170,-168.0,0.00033,14]
[394425685,1763562632180,-577.34576681,0.0003359,20]
[394425686,1763562632190,-1900.76,0.00036,2]
[394425687,1763562632199,-10727.92747089,0.00036,2]
[394425688,1763562632209,-166.66,0.00036115,30]
[394425689,1763562632219,-848.41190318,0.00036466,27]
[394425690,1763562632228,-166.66,0.00036875,30]
[394425691,1763562632238,-160.88,0.00037017,2]
[394425692,1763562632247,-11651.7516854,0.00037047,2]
[394425693,1763562632331,-769.7883146,0.00037047,2]
[394425694,1763562632340,-1000.0,0.00037164,30]
[394425695,1763562632349,-3484.14,0.00037324,2]
[394425696,1763562632359,-166.66,0.00037636,30]
[394425697,1763562632368,-997.86810235,0.00037903,30]
[394425698,1763562632378,-755.0,0.00037969,2]
[394425699,1763562632387,-49716.19758602,0.0003797,2]
[394425700,1763562632396,-500.0,0.00037973,2]
[394425701,1763562632406,-190.06175728,0.00037973,5]
[394425703,1763562632415,-500.0,0.00037973,5]
[394425705,1763562632424,-500.0,0.00037973,5]
[394425707,1763562632433,-2000.0,0.00038,2]
[394425709,1763562632442,-151.0,0.00038,2]
[394425711,1763562632451,-681.66,0.00038104,2]
[394425713,1763562632461,-200.0,0.00038149,2]
[394425715,1763562632470,-166.66,0.00038396,30]
[394425716,1763562632478,-500.0,0.000384,5]
[394425717,1763562632487,-501.600837,0.000384,5]
[394425718,1763562632496,-501.7982065,0.000384,5]
[394425719,1763562632505,-1000.0,0.00038521,5]
[394425720,1763562632514,-10417.90714408,0.00038724,2]
[394425721,1763562632523,-242.0,0.00038786,2]
[394425722,1763562632534,-479.1746172,0.0003885,2]
[394425723,1763562632542,-500.0,0.000389,2]
[394425724,1763562632551,-500.0,0.000389,14]
[394425725,1763562632560,-452.89,0.00038988,2]
[394425726,1763562632570,-452.89,0.00038988,2]
[394425727,1763562632579,-452.89,0.00038988,2]
[394425728,1763562632588,-452.89,0.00038988,2]
[394425729,1763562632597,-452.89,0.00038988,2]
[394425730,1763562632606,-55680.65873215,0.00038998,2]
[394425731,1763562632617,-30828.8650264,0.00038998,2]
[394425732,1763562632628,-334.33830891,0.00038998,2]
[394425733,1763562632639,-15959.44155597,0.00038998,2]
[394425734,1763562632650,-977.3327285,0.00038998,2]
[394425735,1763562632661,-2658.80671309,0.00038998,2]
[394425736,1763562632671,-709.31483839,0.00038998,2]
[394425737,1763562632737,-74517.25315526,0.00038998,2]
[394425754,1763562638038,-578333.98894133,0.00038998,2]
[394425755,1763562638048,-151.0,0.00038998,2]
[394425756,1763562638058,-699.99999907,0.00039,2]
[394425757,1763562638067,-44416.90733641,0.00039,2]
[394425758,1763562638077,-3562.93595206,0.00039006,2]
[394425759,1763562638087,-5449.53652734,0.00039007,2]
[394425760,1763562638097,-393.24764214,0.00039007,2]
[394425761,1763562638106,-159.55159302,0.00039007,15]
[394425762,1763562638115,-270.51067277,0.00039068,5]
[394425763,1763562638134,-500.0,0.00039073,5]
[394425764,1763562638145,-500.0,0.00039073,5]
[394425765,1763562638154,-452.76,0.00039073,30]
[394425767,1763562638164,-150.46,0.00039088,2]
[394425769,1763562638174,-260.02125528,0.00039088,2]
[394425771,1763562638183,-531.767,0.00039096,53]
[394425773,1763562638192,-151.962,0.00039096,53]
[394425775,1763562638201,-500.0,0.00039096,15]
[394425777,1763562638211,-406.0554736,0.00039096,7]
[394425779,1763562638221,-500.0,0.00039096,15]
[394425781,1763562638231,-500.0,0.00039096,15]
[394425783,1763562638240,-500.0,0.00039096,15]
[394425785,1763562638249,-638.11616853,0.00039096,15]
[394425787,1763562638259,-500.0,0.00039096,15]
[394425789,1763562638269,-500.0,0.00039096,15]
[394425790,1763562638278,-500.0,0.00039096,15]
[394425791,1763562638290,-500.0,0.00039096,15]
[394425792,1763562638300,-500.0,0.00039096,15]
[394425793,1763562638309,-500.0,0.00039096,15]
[394425794,1763562638319,-500.0,0.00039096,15]
[394425795,1763562638329,-500.0,0.00039096,15]
[394425796,1763562638339,-500.0,0.00039096,15]
[394425797,1763562638349,-500.0,0.00039096,15]
[394425798,1763562638358,-500.0,0.00039096,15]
[394425799,1763562638368,-500.0,0.00039096,15]
[394425800,1763562638378,-500.0,0.00039096,15]
[394425801,1763562638387,-500.0,0.00039096,15]
[394425802,1763562638397,-500.0,0.00039096,15]
[394425804,1763562638406,-500.0,0.00039096,15]
[394425806,1763562638416,-500.0,0.00039096,15]
[394425807,1763562638425,-500.0,0.00039096,15]
[394425809,1763562638434,-500.0,0.00039096,15]
[394425811,1763562638444,-500.0,0.00039096,15]
[394425813,1763562638453,-500.0,0.00039096,15]
[394425815,1763562638463,-500.0,0.00039096,15]
[394425817,1763562638472,-500.0,0.00039097,2]
[394425819,1763562638482,-169906.630406,0.00039097,4]
[394425821,1763562638492,-230280.064783,0.00039097,4]
[394425823,1763562638501,-500.0,0.00039107,120]
[394425825,1763562638510,-379.37,0.00039107,120]
[394425827,1763562638519,-500.0,0.00039107,120]
[394425829,1763562638529,-500.0,0.00039107,7]
[394425831,1763562638540,-500.0,0.00039107,7]
[394425833,1763562638549,-500.0,0.00039107,7]
[394425835,1763562638559,-230.7,0.00039107,7]
[394425837,1763562638568,-500.0,0.00039107,120]
[394425839,1763562638578,-500.0,0.00039107,120]
[394425841,1763562638588,-517.72064468,0.00039107,120]
[394425843,1763562638597,-500.0,0.00039107,120]
[394425845,1763562638606,-500.0,0.00039107,120]
[394425847,1763562638615,-500.0,0.00039107,120]
[394425849,1763562638624,-500.0,0.00039107,120]
[394425851,1763562638636,-500.0,0.00039107,120]
[394425853,1763562638645,-500.0,0.00039107,120]
[394425855,1763562638654,-552.70690128,0.00039107,120]
[394425857,1763562638663,-500.0,0.00039107,120]
[394425859,1763562638676,-500.0,0.00039107,120]
[394425861,1763562638685,-500.0,0.00039107,120]
[394425863,1763562638696,-500.0,0.00039107,2]
[394425865,1763562638705,-500.0,0.00039107,2]
[394425867,1763562638715,-500.0,0.00039107,2]
[394425869,1763562638724,-500.0,0.00039107,2]
[394425871,1763562638733,-450.97471094,0.00039107,30]
[394425873,1763562638743,-500.0,0.00039107,2]
[394425875,1763562638752,-500.0,0.00039107,2]
[394425877,1763562638761,-500.0,0.00039107,2]
[394425879,1763562638770,-208.7574201,0.00039107,120]
[394425881,1763562638783,-500.0,0.00039107,120]
[394425883,1763562638793,-627.09070998,0.00039107,120]
[394425885,1763562638803,-5328.3868,0.00039107,2]
[394425887,1763562638812,-1000.0,0.00039107,2]
[394425889,1763562638822,-166.66,0.00039156,30]
[394425891,1763562638832,-500.0,0.00039173,5]
[394425893,1763562638842,-500.91389583,0.00039173,5]
[394425895,1763562638852,-500.40170696,0.00039173,5]
[394425897,1763562638862,-462.94013652,0.00039173,5]
[394425899,1763562638872,-563.36494156,0.00039173,5]
[394425901,1763562638885,-10965.7173706,0.00039326,4]
[394425903,1763562638896,-1155.87599383,0.00039341,33]
[394425906,1763562638907,-3562.93595197,0.00039345,2]
[394425908,1763562638917,-5449.53652734,0.00039346,2]
[394425910,1763562638927,-452.76,0.00039347,30]
[394425912,1763562638937,-393.24764212,0.00039443,2]
[394425914,1763562638947,-159.55159297,0.00039443,15]
[394425916,1763562638959,-152.0,0.00039563,3]
[394425918,1763562638969,-168.0,0.00039596,2]
[394425919,1763562638979,-5000.0,0.00039599,120]
[394425920,1763562638990,-10965.7173706,0.00039611,4]
[394425921,1763562638999,-504.44408651,0.00039621,5]
[394425922,1763562639009,-452.76,0.00039621,30]
[394425924,1763562639019,-166.3,0.00039654,2]
[394425926,1763562639029,-610.0,0.00039666,2]
[394425928,1763562639041,-3562.93595197,0.00039685,2]
[394425930,1763562639051,-5449.53652734,0.00039685,2]
[394425932,1763562639064,-900.0,0.0003986,2]
[394425934,1763562639075,-10965.7173706,0.00039879,4]
[394425935,1763562639089,-393.24764212,0.00039879,2]
[394425936,1763562639099,-159.55159297,0.00039879,15]
[394425937,1763562639110,-500.0,0.00039889,2]
[394425938,1763562639120,-150.0,0.00039889,2]
[394425939,1763562639130,-150.0,0.00039889,2]
[394425940,1763562639141,-150.0,0.00039889,2]
[394425941,1763562639151,-150.0,0.00039889,2]
[394425942,1763562639161,-150.0,0.00039889,2]
[394425943,1763562639171,-150.0,0.00039889,2]
[394425944,1763562639182,-150.0,0.00039889,2]
[394425945,1763562639192,-500.0,0.00039889,2]
[394425946,1763562639201,-216.86975788,0.00039889,2]
[394425947,1763562639212,-150.0,0.00039889,2]
[394425948,1763562639222,-150.0,0.00039889,2]
[394425949,1763562639232,-150.0,0.00039889,120]
[394425950,1763562639242,-452.76,0.00039895,30]
[394425951,1763562639252,-1100.0,0.000399,14]
[394425952,1763562639262,-500.0,0.00039916,2]
[394425953,1763562639271,-150.0,0.00039916,2]
[394425954,1763562639283,-150.0,0.00039916,2]
[394425955,1763562639293,-150.0,0.00039916,2]
[394425956,1763562639302,-500.0,0.00039916,2]
[394425957,1763562639312,-150.0,0.00039916,2]
[394425958,1763562639323,-258.30079919,0.00039916,2]
[394425959,1763562639332,-170.0,0.00039916,120]
[394425960,1763562639342,-166.66,0.00039916,30]
[394425961,1763562639351,-500.0,0.00039944,2]
[394425962,1763562639361,-204.29749888,0.00039944,2]
[394425963,1763562639370,-200.0,0.00039944,2]
[394425964,1763562639380,-150.0,0.00039944,2]
[394425965,1763562639389,-500.0,0.00039944,2]
[394425966,1763562639399,-250.0,0.00039944,2]
[394425967,1763562639409,-900.0,0.0003996,2]
[394425968,1763562639419,-153.77768751,0.00039971,2]
[394425969,1763562639429,-500.0,0.00039971,2]
[394425970,1763562639439,-505.26711068,0.00039973,5]
[394425971,1763562639448,-500.0,0.00039973,5]
[394425972,1763562639462,-566.88496045,0.00039973,5]
[394425973,1763562639472,-10965.7173706,0.00039989,4]
[394425974,1763562639481,-10965.7173706,0.0003999,4]
[394425975,1763562639491,-430.94387888,0.00039999,2]
[394425976,1763562639500,-11304.25456163,0.00039999,2]
[394425977,1763562639510,-8007.24682841,0.00039999,2]
[394425978,1763562639519,-219.85,0.0004,120]
[394425979,1763562639528,-156.57,0.0004,120]
[394425980,1763562639541,-10000.0,0.0004,30]
[394425981,1763562639551,-10000.0,0.0004,2]
[394425982,1763562639560,-10965.7173706,0.00040014,4]
[394425983,1763562639569,-3562.93595197,0.00040024,15]
[394425984,1763562639579,-5449.53652734,0.00040025,15]
[394425985,1763562639588,-168.0,0.00040106,120]
[394425986,1763562639597,-452.76,0.00040168,30]
[394425987,1763562639606,-393.24764212,0.00040315,28]
[394425988,1763562639615,-159.55159297,0.00040315,15]
[394425989,1763562639625,-168.0,0.00040341,7]
[394425990,1763562639634,-3562.93595197,0.00040363,15]
[394425991,1763562639644,-5449.53652734,0.00040364,15]
[394425992,1763562639653,-2000.0,0.000405,2]
[394425993,1763562639662,-10965.7173706,0.00040693,4]
[394425994,1763562639672,-3562.93595197,0.00040703,15]
[394425995,1763562639681,-5449.53652734,0.00040703,15]
[394425996,1763562639690,-393.24764212,0.00040752,28]
[394425997,1763562639699,-159.55159297,0.00040752,15]
[394425998,1763562639708,-1321.99553671,0.00040779,36]
[394425999,1763562639718,-168.0,0.00040785,2]
[394426000,1763562639727,-235.37436211,0.00040895,2]
[394426001,1763562639737,-3562.93595197,0.00041042,15]
[394426002,1763562639747,-5449.53652734,0.00041042,15]
[394426003,1763562639756,-10965.7173706,0.0004109,4]
[394426004,1763562639766,-317.84610538,0.00041095,2]
[394426005,1763562639776,-574.3,0.00041095,2]
[394426006,1763562639787,-500.0,0.00041095,2]
[394426007,1763562639797,-2304.15,0.00041095,2]
[394426008,1763562639806,-501.07310872,0.00041095,2]
[394426009,1763562639815,-300.0,0.00041095,2]
[394426010,1763562639825,-300.0,0.00041095,2]
[394426011,1763562639835,-250.7,0.00041096,120]
[394426012,1763562639847,-154.82,0.00041096,2]
[394426014,1763562639856,-203.23919313,0.00041096,30]
[394426015,1763562639869,-1700.0,0.000411,15]
[394426016,1763562639878,-443.78565574,0.000411,2]
[394426017,1763562639887,-249.0,0.00041175,2]
[394426018,1763562639896,-1000.0,0.00041179,120]
[394426019,1763562639907,-393.24764212,0.00041188,28]
[394426020,1763562639916,-159.55159297,0.00041188,15]
[394426021,1763562639925,-2300.0,0.000412,15]
[394426022,1763562639935,-162.0,0.00041206,120]
[394426023,1763562639947,-2900.0,0.000413,15]
[394426024,1763562639958,-1209.94,0.00041342,30]
[394426025,1763562639968,-1209.94,0.00041342,30]
[394426026,1763562639977,-319.85,0.00041345,14]
[394426027,1763562639986,-10965.7173706,0.00041359,4]
[394426028,1763562639995,-574.3,0.00041369,2]
[394426029,1763562640004,-500.0,0.00041369,2]
[394426030,1763562640014,-2304.15,0.00041369,2]
[394426031,1763562640023,-300.0,0.00041369,2]
[394426032,1763562640034,-500.0,0.00041381,2]
[394426033,1763562640043,-3562.93595197,0.00041381,15]
[394426034,1763562640053,-5449.53652734,0.00041382,15]
[394426035,1763562640063,-500.0,0.000414,15]
[394426036,1763562640072,-162.94935356,0.00041424,2]
[394426037,1763562640082,-822.0,0.00041443,2]
[394426038,1763562640091,-1600.0,0.00041443,2]
[394426039,1763562640101,-794.0,0.00041443,2]
[394426040,1763562640110,-1276.0,0.00041443,2]
[394426041,1763562640120,-1191.307,0.00041443,2]
[394426042,1763562640129,-907.0,0.00041443,2]
[394426043,1763562640139,-705.0,0.00041443,2]
[394426044,1763562640148,-575.0,0.00041443,2]
[394426045,1763562640157,-609.0,0.00041443,2]
[394426046,1763562640166,-325.05031776,0.00041473,10]
[394426047,1763562640176,-222.2113773,0.00041493,2]
[394426048,1763562640185,-167.79649845,0.000415,120]
[394426049,1763562640195,-500.0,0.000415,15]
[394426050,1763562640204,-233.52,0.00041567,2]
[394426051,1763562640213,-500.0,0.000416,15]
[394426052,1763562640224,-393.24764212,0.00041624,28]
[394426053,1763562640233,-159.55159297,0.00041624,15]
[394426054,1763562640245,-574.3,0.00041643,2]
[394426055,1763562640255,-2304.15,0.00041643,2]
[394426056,1763562640264,-222.2113773,0.00041653,2]
[394426057,1763562640274,-249.0,0.00041655,120]
[394426058,1763562640284,-500.0,0.000417,15]
[394426059,1763562640294,-3562.93595197,0.00041721,15]
[394426060,1763562640303,-5449.53652734,0.00041721,15]
[394426062,1763562640313,-936.02571,0.0004173,10]
[394426064,1763562640322,-1114.0,0.000418,15]
[394426066,1763562640331,-249.0,0.00041841,120]
[394426068,1763562640341,-300.0,0.00041889,2]
[394426070,1763562640350,-601.70861865,0.00041899,2]
[394426072,1763562640359,-150.0,0.000419,60]
[394426074,1763562640369,-52932.81103715,0.000419,2]
[394426076,1763562640378,-300.0,0.00041907,2]
[394426078,1763562640387,-300.0,0.00041908,2]
[394426080,1763562640396,-574.3,0.00041917,2]
[394426081,1763562640406,-2304.15,0.00041917,2]
[394426083,1763562640415,-1000.0,0.00041918,14]
[394426084,1763562640425,-1000.0,0.0004192,14]
[394426085,1763562640435,-936.02572,0.0004192,11]
[394426086,1763562640444,-300.0,0.00041923,2]
[394426087,1763562640454,-300.0,0.0004193,2]
[394426088,1763562640463,-211.092584,0.00041933,2]
[394426089,1763562640472,-500.0,0.0004195,7]
[394426090,1763562640482,-500.0,0.0004195,120]
[394426091,1763562640491,-500.0,0.0004195,2]
[394426092,1763562640501,-300.0,0.0004195,2]
[394426093,1763562640510,-133668.1991,0.0004195,30]
[394426094,1763562640519,-2000.0,0.00041954,3]
[394426095,1763562640529,-300.0,0.00041973,2]
[394426096,1763562640541,-300.0,0.00041979,2]
[394426097,1763562640551,-300.0,0.00041982,2]
[394426098,1763562640560,-300.0,0.00041984,2]
[394426099,1763562640569,-300.0,0.00041991,2]
[394426100,1763562640578,-273.1139571,0.00042,120]
[394426101,1763562640587,-200.0,0.00042,30]
[394426102,1763562640596,-500.0,0.00042,7]
[394426103,1763562640605,-500.0,0.00042,2]
[394426104,1763562640795,-500.0,0.00042,3]
[394426105,1763562640810,-1500.0,0.00042,2]
[394426106,1763562640820,-1500.0,0.00042,2]
[394426107,1763562640830,-1500.0,0.00042,2]
[394426108,1763562640839,-1040.01,0.00042,2]
[394426109,1763562640849,-2520.0,0.00042,120]
[394426110,1763562640860,-2500.0,0.00042,120]
[394426111,1763562640870,-300.0,0.00042003,2]
[394426112,1763562640884,-300.0,0.00042004,2]
[394426113,1763562640894,-300.0,0.00042005,2]
[394426114,1763562640904,-300.0,0.00042013,2]
[394426115,1763562640915,-300.0,0.00042026,2]
[394426116,1763562640924,-300.0,0.0004203,2]
[394426117,1763562640934,-1000.0,0.00042035,14]
[394426118,1763562640944,-6300.0,0.00042048,7]
[394426119,1763562640956,-10000.0,0.0004206,2]
[394426120,1763562640966,-3562.93595197,0.0004206,15]
[394426121,1763562640975,-393.24764212,0.0004206,28]
[394426122,1763562640985,-5449.53652734,0.0004206,15]
[394426123,1763562640995,-362.75739818,0.0004206,2]
[394426124,1763562641006,-328.21440872,0.0004206,2]
[394426125,1763562641016,-159.55159297,0.0004206,15]
[394426126,1763562641025,-131987.8632,0.0004206,120]
[394426127,1763562641036,-300.0,0.00042068,2]
[394426128,1763562641046,-1000.0,0.00042082,14]
[394426129,1763562641057,-300.0,0.00042089,2]
[394426130,1763562641067,-300.0,0.0004209,2]
[394426131,1763562641076,-277.83488028,0.00042094,2]
[394426132,1763562641085,-1000.0,0.00042099,14]
[394426133,1763562641094,-300.0,0.00042109,2]
[394426134,1763562641103,-300.0,0.0004211,2]
[394426135,1763562641112,-300.0,0.0004212,2]
[394426136,1763562641121,-300.0,0.00042123,2]
[394426137,1763562641130,-1000.0,0.00042126,14]
[394426138,1763562641139,-268.27,0.00042145,14]
[394426139,1763562641148,-150.46,0.0004215,2]
[394426140,1763562641158,-9438.8279601,0.00042152,2]
[394426141,1763562641167,-300.0,0.00042153,2]
[394426142,1763562641176,-300.0,0.00042153,2]
[394426143,1763562641186,-300.0,0.00042154,2]
[394426144,1763562641195,-936.02572,0.00042155,12]
[394426145,1763562641204,-300.0,0.00042157,2]
[394426146,1763562641213,-500.0,0.00042158,2]
[394426147,1763562641222,-1254.76831777,0.00042159,60]
[394426148,1763562641231,-500.0,0.00042159,2]
[394426149,1763562641239,-500.0,0.00042159,30]
[394426150,1763562641248,-500.0,0.00042159,7]
[394426151,1763562641258,-500.0,0.00042159,30]
[394426152,1763562641268,-1365512.55619458,0.0004216,10]
[394426153,1763562641277,-212349.63334669,0.0004216,10]
[394426154,1763562641288,-200.0,0.0004216,7]
[394426155,1763562641297,-200.0,0.0004216,7]
[394426156,1763562641311,-151.0,0.0004216,120]
[394426157,1763562641320,-151.0,0.0004216,120]
[394426158,1763562641329,-207.131146,0.0004216,120]
[394426159,1763562641340,-400.856679,0.0004216,120]
[394426160,1763562641350,-400.856679,0.0004216,120]
[394426161,1763562641358,-400.856679,0.0004216,120]
[394426162,1763562641368,-400.856679,0.0004216,120]
[394426163,1763562641377,-400.856679,0.0004216,120]
[394426164,1763562641386,-400.856679,0.0004216,120]
[394426165,1763562641395,-400.856679,0.0004216,120]
[394426166,1763562641404,-400.856679,0.0004216,120]
[394426167,1763562641413,-400.856679,0.0004216,120]
[394426168,1763562641422,-400.856679,0.0004216,120]
[394426169,1763562641431,-400.856679,0.0004216,120]
[394426170,1763562641439,-400.856679,0.0004216,120]
[394426171,1763562641449,-400.856679,0.0004216,120]
[394426172,1763562641458,-400.856679,0.0004216,120]
[394426173,1763562641470,-400.856679,0.0004216,120]
[394426174,1763562641479,-400.856679,0.0004216,120]
[394426175,1763562641488,-400.856679,0.0004216,120]
[394426176,1763562641497,-400.856679,0.0004216,120]
[394426177,1763562641506,-400.856679,0.0004216,120]
[394426178,1763562641515,-400.856687,0.0004216,120]
[394426179,1763562641524,-151.0,0.0004216,120]
[394426180,1763562641533,-250.365455,0.0004216,120]
[394426181,1763562641542,-1200.0,0.0004216,30]
[394426182,1763562641551,-200.0,0.0004216,7]
[394426183,1763562641560,-237531.09200605,0.0004216,25]
[394426184,1763562641573,-150.86850997,0.0004216,120]
[394426185,1763562641583,-4187615.83114766,0.0004216,7]
[394426186,1763562641636,-261.08530102,0.00039107,2]
[394426187,1763562641646,-1605.0,0.00041443,2]
[394426188,1763562641655,-300.0,0.00041914,2]
[394426189,1763562641664,-300.0,0.00041961,2]
[394426190,1763562641674,-300.0,0.00041986,2]
[394426191,1763562641683,-300.0,0.00042038,2]
[394426192,1763562641693,-300.0,0.00042104,2]
[394426193,1763562641702,-300.0,0.00042128,2]
[394426194,1763562641711,-918.41469898,0.0004216,7]
[394426195,1763562641721,-250.0,0.0004216,7]
[394426201,1763562646087,-292.2324242,0.00039631,30]
[394426202,1763562646151,-177.4715758,0.00039631,30]
[394426203,1763562646162,-756815.3540242,0.0004216,7]
[394426204,1763562646214,-263.24999525,0.0004216,7]
[394426205,1763562646500,-300.0,0.00042088,2]
[394426206,1763562646510,-5.6053,0.0004216,7]
[394426208,1763562646723,-116.29807585,0.0004216,7]
[394426212,1763562683382,200.0,0.00021,2]
[394426213,1763562683707,200.0,0.0002,2]
[394426217,1763562709534,250.0,0.00017,2]
[394426229,1763562742873,200.0,0.00021,2]
[394426230,1763562743129,200.0,0.0002,2]
[394426885,1763563133836,-159.55159297,0.00038797,15]
[394426886,1763563134021,-300.0,0.00038822,119]
[394426887,1763563134236,-300.0,0.00038837,119]
[394426888,1763563134261,-300.0,0.00038837,119]
[394426889,1763563134287,-300.0,0.00038837,119]
[394426890,1763563134444,-6173.23378543,0.00038838,4]
[394426899,1763563170873,3711.86,0.0004216,120]
[394426900,1763563171111,3711.86,0.0004216,120]
[394426903,1763563171573,3711.86,0.0004216,120]
[394426904,1763563171837,3711.86,0.0004216,120]
[394426905,1763563172108,3711.86,0.0004216,120]
[394426906,1763563172581,3711.86,0.0004216,120]
[394426907,1763563172837,3711.86,0.0004216,120]
[394426908,1763563173092,3711.86,0.0004216,120]
[394426909,1763563173397,3711.86,0.0004216,120]
[394426910,1763563173655,3711.86,0.0004216,120]
[394426911,1763563173909,3711.86,0.0004216,120]
[394426912,1763563174184,3711.86,0.0004216,120]
[394426914,1763563174422,3711.86,0.0004216,120]
[394426916,1763563174852,3711.86,0.0004216,120]
[394426917,1763563174902,3711.86,0.0004216,120]
[394426918,1763563175248,3711.86,0.0004216,120]
[394426919,1763563175409,3711.86,0.0004216,120]
[394426920,1763563175656,3711.86,0.0004216,120]
[394426921,1763563175912,3711.86,0.0004216,120]
[394426923,1763563176536,3711.86,0.0004216,120]
[394426924,1763563176811,3711.86,0.0004216,120]
[394426925,1763563177086,3711.86,0.0004216,120]
[394426926,1763563177323,3711.86,0.0004216,120]
[394426927,1763563177559,3711.8953779,0.0004216,120]
[394426999,1763563309292,151.0,0.0004216,118]
[394427000,1763563309607,155.668204,0.0004216,118]
[394427023,1763563330658,151.0,0.0004216,118]
[394427024,1763563331055,151.0,0.0004216,118]
[394427025,1763563331508,151.0,0.0004216,118]
[394427026,1763563332481,151.0,0.0004216,118]
[394427027,1763563333260,157.084535,0.0004216,118]
[394427041,1763563340777,151.0,0.0004216,118]
[394427043,1763563341097,151.0,0.0004216,118]
[394427044,1763563341383,151.0,0.0004216,118]
[394427046,1763563341738,151.0,0.0004216,118]
[394427048,1763563342119,151.0,0.0004216,118]
[394427049,1763563342438,151.0,0.0004216,118]
[394427053,1763563342870,151.0,0.0004216,118]
[394427054,1763563343226,151.0,0.0004216,118]
[394427056,1763563343563,151.0,0.0004216,118]
[394427059,1763563343875,151.0,0.0004216,118]
[394427062,1763563344198,151.0,0.0004216,118]
[394427064,1763563344270,291.561251,0.0004216,118]
[394427066,1763563344506,151.0,0.0004216,118]
[394427067,1763563344575,291.561251,0.0004216,118]
[394427070,1763563344795,151.0,0.0004216,118]
[394427071,1763563344889,291.561251,0.0004216,118]
[394427074,1763563345129,151.0,0.0004216,118]
[394427075,1763563345202,291.561251,0.0004216,118]
[394427077,1763563345465,297.415763,0.0004216,118]
[394427079,1763563345569,291.561251,0.0004216,118]
[394427082,1763563345893,291.561251,0.0004216,118]
[394427085,1763563346224,291.561251,0.0004216,118]
[394427090,1763563346591,291.561251,0.0004216,118]
[394427091,1763563346811,291.561251,0.0004216,118]